bitfinex-derivatives/quotes_BTCF0:USTF0_20240925
["timestamp","ask_amount","ask_price","bid_price","bid_amount"]
[1727274294911,0.16739017,63852.0,63843.0,0.07832]
[1727274294912,0.078319,63844.0,63843.0,0.07832]
[1727274295220,0.078319,63844.0,63843.0,0.25744621]
[1727274295425,0.078319,63844.0,63843.0,0.07832]
[1727274295619,0.078319,63844.0,63828.0,0.06213948]
[1727274295620,0.02539315,63844.0,63828.0,0.06213948]
[1727274295812,0.14090863,63834.0,63830.0,0.439136]
[1727274296015,0.14,63832.0,63830.0,0.439136]
[1727274296214,0.078332,63834.0,63832.0,0.078334]
[1727274296412,0.078329,63837.0,63830.0,0.3608]
[1727274296625,0.078329,63837.0,63830.0,0.42293948]
[1727274296828,0.3938,63838.0,63832.0,0.14]
[1727274296829,0.3608,63838.0,63832.0,0.14]
[1727274297319,0.078324,63840.0,63831.0,0.06213948]
[1727274297519,0.078328,63837.0,63830.0,0.42293948]
[1727274297822,0.078324,63840.0,63834.0,0.078331]
[1727274298023,0.08767937,63840.0,63835.0,0.07833]
[1727274298526,0.078326,63839.0,63835.0,0.07833]
[1727274298822,0.001,63837.0,63835.0,0.07833]
[1727274299213,0.001,63837.0,63836.0,0.078329]
[1727274299415,0.3608,63838.0,63836.0,0.078329]
[1727274300122,0.001,63837.0,63836.0,0.078329]
[1727274301115,0.001,63839.0,63838.0,0.078327]
[1727274301524,0.001,63839.0,63838.0,0.2514016]
[1727274301717,0.3608,63846.0,63845.0,0.078318]
[1727274302021,0.3608,63846.0,63841.0,0.078323]
[1727274302523,0.3608,63846.0,63839.0,0.078325]
[1727274302524,0.14,63845.0,63839.0,0.078325]
[1727274303420,0.14,63841.0,63836.0,0.3608]
[1727274303617,0.14,63845.0,63836.0,0.3608]
[1727274303821,0.14,63845.0,63838.0,0.16325]
[1727274304027,0.078327,63838.0,63832.0,0.111933]
[1727274304221,0.14,63841.0,63832.0,0.111933]
[1727274304222,0.3608,63839.0,63832.0,0.08771715]
[1727274304814,0.078331,63835.0,63834.0,0.078331]
[1727274305417,0.14,63836.0,63828.0,0.0346]
[1727274305628,0.078338,63829.0,63828.0,0.078339]
[1727274305823,0.078343,63825.0,63824.0,0.08747854]
[1727274306027,0.078343,63825.0,63824.0,0.078343]
[1727274306227,0.078343,63825.0,63824.0,0.25857105]
[1727274306529,0.078347,63822.0,63821.0,0.078347]
[1727274306928,0.078347,63822.0,63821.0,0.08783079]
[1727274307624,0.078347,63822.0,63821.0,0.00948379]
[1727274307820,0.078349,63820.0,63819.0,0.00235032]
[1727274308020,0.078354,63816.0,63815.0,0.3608]
[1727274308228,0.0677,63821.0,63816.0,0.078353]
[1727274308229,0.078351,63819.0,63816.0,0.078353]
[1727274308423,0.078349,63821.0,63819.0,0.07835]
[1727274308823,0.078349,63820.0,63819.0,0.07835]
[1727274309328,0.001,63822.0,63815.0,0.44833806]
[1727274309532,0.001,63821.0,63815.0,0.36998306]
[1727274309715,0.142,63821.0,63815.0,0.3608]
[1727274310131,0.001,63821.0,63815.0,0.3608]
[1727274310329,0.002,63820.0,63815.0,0.5008]
[1727274310534,0.002,63820.0,63819.0,0.07835]
[1727274310728,0.001,63820.0,63819.0,0.07835]
[1727274311323,0.001,63820.0,63815.0,0.36168]
[1727274311524,0.141,63820.0,63815.0,0.439155]
[1727274311735,0.141,63820.0,63815.0,0.3608]
[1727274311736,0.001,63820.0,63815.0,0.3608]
[1727274311925,0.002,63821.0,63815.0,0.3608]
[1727274312132,0.002,63821.0,63818.0,0.07835]
[1727274312636,0.002,63821.0,63819.0,0.07835]
[1727274313020,0.001,63820.0,63819.0,0.07835]
[1727274313435,0.002,63820.0,63819.0,0.07835]
[1727274313637,0.001,63820.0,63819.0,0.07835]
[1727274314323,0.002,63820.0,63819.0,0.07835]
[1727274314931,0.0036,63830.0,63829.0,0.078338]
[1727274315229,0.00926901,63831.0,63830.0,0.078336]
[1727274315418,0.00926901,63831.0,63824.0,0.14]
[1727274315419,0.3608,63832.0,63831.0,0.078335]
[1727274315924,0.3608,63832.0,63831.0,1.32659958]
[1727274316122,0.3608,63832.0,63831.0,0.72659958]
[1727274316325,0.4305,63841.0,63834.0,0.078332]
[1727274316635,0.3608,63841.0,63840.0,0.078324]
[1727274317332,0.0338,63848.0,63847.0,0.078316]
[1727274318429,0.0338,63848.0,63843.0,0.07832]
[1727274318631,0.0338,63848.0,63844.0,0.078319]
[1727274318828,0.0338,63848.0,63840.0,0.3608]
[1727274318829,0.0338,63848.0,63845.0,0.078317]
[1727274319134,0.0368,63848.0,63846.0,0.078317]
[1727274319627,0.0368,63848.0,63847.0,0.078316]
[1727274319837,0.0418,63848.0,63847.0,0.078316]
[1727274320450,0.0338,63848.0,63847.0,0.078316]
[1727274320736,0.0408,63848.0,63847.0,0.078316]
[1727274321129,0.0418,63848.0,63847.0,0.078316]
[1727274322036,0.0438,63848.0,63847.0,0.078316]
[1727274322739,0.0418,63848.0,63847.0,0.078316]
[1727274322927,0.0448,63848.0,63847.0,0.078316]
[1727274326441,0.0448,63848.0,63847.0,0.156632]
[1727274326943,0.011,63848.0,63847.0,0.156632]
[1727274327544,0.011,63848.0,63847.0,0.234948]
[1727274327846,0.011,63848.0,63847.0,0.156632]
[1727274329428,0.011,63848.0,63847.0,0.234948]
[1727274329636,0.07660925,63856.0,63847.0,0.234948]
[1727274329637,0.0322,63856.0,63855.0,0.156612]
[1727274329938,0.06240209,63858.0,63857.0,0.156606]
[1727274330136,0.06235788,63863.0,63862.0,0.078297]
[1727274330437,0.0336,63865.0,63864.0,0.078295]
[1727274332243,0.0336,63865.0,63864.0,0.081295]
[1727274333040,0.0336,63865.0,63864.0,0.085295]
[1727274333641,0.0336,63865.0,63864.0,0.081295]
[1727274333842,0.3608,63867.0,63864.0,0.004]
[1727274334144,0.035,63871.0,63870.0,0.078287]
[1727274334639,0.3608,63874.0,63873.0,0.078284]
[1727274335145,0.04400278,63875.0,63874.0,0.078283]
[1727274335443,0.0347,63875.0,63874.0,0.078283]
[1727274336935,0.0447,63875.0,63874.0,0.079283]
[1727274337229,0.01,63875.0,63874.0,0.079283]
[1727274337845,0.016,63875.0,63874.0,0.079283]
[1727274338850,0.01,63875.0,63874.0,0.081283]
[1727274339237,0.14,63876.0,63875.0,0.078281]
[1727274339434,0.00926183,63877.0,63876.0,0.07828]
[1727274339632,0.078278,63878.0,63877.0,0.078279]
[1727274340132,0.078278,63878.0,63874.0,0.002]
[1727274340133,0.0693,63879.0,63878.0,0.078278]
[1727274341448,0.147576,63879.0,63878.0,0.078278]
[1727274341652,0.15704046,63879.0,63878.0,0.078278]
[1727274341845,0.52184046,63879.0,63878.0,0.078278]
[1727274342744,0.52184046,63879.0,63877.0,0.001]
[1727274342945,0.52184046,63879.0,63858.0,0.082002]
[1727274342946,0.078278,63878.0,63858.0,0.082002]
[1727274343166,0.5008,63869.0,63868.0,0.07829]
[1727274343357,0.3608,63869.0,63868.0,0.07829]
[1727274343651,0.3608,63869.0,63868.0,0.15658]
[1727274344037,0.001,63878.0,63866.0,0.14]
[1727274344240,0.001,63878.0,63877.0,0.439079]
[1727274344644,0.001,63878.0,63877.0,0.078279]
[1727274345351,0.002,63878.0,63877.0,0.078279]
[1727274345658,0.0685,63878.0,63877.0,0.078279]
[1727274346044,0.0705,63878.0,63877.0,0.078279]
[1727274346259,0.0695,63878.0,63877.0,0.078279]
[1727274346559,0.0695,63878.0,63868.0,0.002]
[1727274346560,0.078281,63875.0,63874.0,0.078282]
[1727274346743,0.2095,63878.0,63877.0,0.078279]
[1727274347047,0.0765,63878.0,63877.0,0.078279]
[1727274347650,0.0735,63878.0,63877.0,0.078279]
[1727274348560,0.0765,63878.0,63877.0,0.078279]
[1727274352349,0.2165,63878.0,63877.0,0.078279]
[1727274352552,0.29472079,63878.0,63877.0,0.078279]
[1727274353143,0.37299879,63878.0,63877.0,0.078279]
[1727274353345,0.32016,63878.0,63877.0,0.078279]
[1727274356455,0.2118,63879.0,63877.0,0.14]
[1727274356650,0.06243933,63882.0,63877.0,0.3608]
[1727274356851,0.00798642,63888.0,63882.0,0.078273]
[1727274357058,0.00798642,63888.0,63877.0,0.3608]
[1727274357059,0.218267,63887.0,63886.0,0.078267]
[1727274358459,0.07810332,63890.0,63886.0,0.14]
[1727274358655,0.06247672,63887.0,63885.0,0.439069]
[1727274358954,0.011,63887.0,63886.0,0.157536]
[1727274359352,0.025,63887.0,63886.0,0.158536]
[1727274359952,0.0326,63892.0,63888.0,0.078265]
[1727274359953,0.06247672,63889.0,63888.0,0.078265]
[1727274360264,0.06447672,63890.0,63889.0,0.078264]
[1727274360446,0.06447672,63890.0,63889.0,0.156528]
[1727274360652,0.002,63890.0,63889.0,0.156528]
[1727274361468,0.002,63890.0,63889.0,0.078264]
[1727274361851,0.09507672,63892.0,63891.0,0.078262]
[1727274362247,0.0326,63892.0,63891.0,0.078262]
[1727274362660,0.09507672,63892.0,63891.0,0.078262]
[1727274363387,0.0446,63892.0,63891.0,0.079262]
[1727274363568,1.18363672,63892.0,63881.0,0.3608]
[1727274363764,0.14,63882.0,63881.0,0.439074]
[1727274364157,0.14,63886.0,63881.0,0.3608]
[1727274364464,0.14,63886.0,63885.0,0.078269]
[1727274364666,0.16537795,63886.0,63885.0,0.078269]
[1727274364965,0.02537795,63886.0,63885.0,0.156538]
[1727274365267,0.0396,63892.0,63891.0,0.078262]
[1727274365456,0.11410071,63892.0,63891.0,0.078262]
[1727274365762,0.12627845,63892.0,63891.0,0.156524]
[1727274365962,0.05797667,63892.0,63891.0,0.156524]
[1727274366572,0.06497667,63892.0,63891.0,0.157524]
[1727274367266,0.06497667,63892.0,63891.0,0.079262]
[1727274368367,0.07697667,63892.0,63891.0,0.080262]
[1727274369560,0.07697667,63892.0,63891.0,0.002]
[1727274369754,0.20435615,63892.0,63891.0,0.080262]
[1727274370863,0.078269,63885.0,63883.0,0.07827]
[1727274371165,0.24364667,63884.0,63883.0,0.07827]
[1727274371367,0.078273,63882.0,63881.0,0.3608]
[1727274372071,0.078276,63879.0,63877.0,0.078278]
[1727274372276,0.2051,63878.0,63874.0,0.078281]
[1727274372564,0.2051,63878.0,63873.0,0.00234826]
[1727274372565,0.078283,63874.0,63873.0,0.00234826]
[1727274374261,0.111983,63874.0,63873.0,0.00234826]
[1727274374865,0.112983,63874.0,63873.0,0.01034826]
[1727274375556,0.001,63874.0,63873.0,0.08863226]
[1727274376564,0.001,63874.0,63873.0,0.44943226]
[1727274377066,0.001,63874.0,63873.0,0.52771626]
[1727274377367,0.001,63874.0,63873.0,0.44943226]
[1727274378365,0.001,63874.0,63873.0,0.008]
[1727274378566,0.079283,63874.0,63873.0,0.008]
[1727274378867,0.219993,63874.0,63873.0,0.008]
[1727274379171,1.07068,63874.0,63864.0,0.078294]
[1727274379373,1.07068,63874.0,63861.0,0.439098]
[1727274379374,0.078297,63862.0,63861.0,0.439098]
[1727274379666,0.14071507,63862.0,63861.0,0.439098]
[1727274379872,0.06241807,63862.0,63861.0,0.439098]
[1727274380067,0.06241807,63862.0,63861.0,0.078298]
[1727274380268,0.078297,63862.0,63861.0,0.078298]
[1727274380469,0.14,63862.0,63857.0,0.3608]
[1727274380680,0.20241807,63858.0,63852.0,0.078309]
[1727274380871,0.078308,63853.0,63852.0,0.078309]
[1727274381376,0.076308,63853.0,63852.0,0.078309]
[1727274381571,0.070308,63853.0,63852.0,0.078309]
[1727274381971,0.078312,63850.0,63849.0,0.36314917]
[1727274382277,0.078312,63850.0,63849.0,0.00234917]
[1727274382477,0.439112,63850.0,63849.0,0.00234917]
[1727274383576,0.439112,63850.0,63839.0,0.078325]
[1727274383787,0.439112,63850.0,63831.0,0.0036]
[1727274383788,0.07833,63836.0,63831.0,0.0036]
[1727274383994,0.07833,63836.0,63827.0,0.00088]
[1727274383995,0.14,63832.0,63827.0,0.00088]
[1727274384279,0.14,63832.0,63831.0,0.078335]
[1727274384477,0.07833,63835.0,63834.0,0.078332]
[1727274384679,0.07833,63835.0,63826.0,0.3608]
[1727274384680,0.5008,63835.0,63826.0,0.3608]
[1727274384868,0.14,63831.0,63826.0,0.3608]
[1727274385684,0.0327,63834.0,63826.0,0.3608]
[1727274386069,0.14,63827.0,63826.0,0.439141]
[1727274386272,0.14,63827.0,63818.0,0.3608]
[1727274386467,0.14,63827.0,63800.0,0.0042]
[1727274386468,0.5008,63819.0,63809.0,0.0036]
[1727274386673,0.14,63810.0,63804.0,0.3608]
[1727274386872,0.078372,63801.0,63794.0,0.3608]
[1727274387084,0.14,63795.0,63794.0,0.3608]
[1727274387284,0.14,63795.0,63779.0,0.0037]
[1727274387285,0.14,63795.0,63782.0,0.3608]
[1727274387483,0.14,63785.0,63782.0,0.439195]
[1727274387677,0.078385,63791.0,63782.0,0.439195]
[1727274387977,0.078385,63791.0,63777.0,0.17025354]
[1727274387978,0.078393,63784.0,63777.0,0.3608]
[1727274388167,0.078393,63784.0,63769.0,0.3608]
[1727274388168,0.14,63779.0,63769.0,0.3608]
[1727274388373,0.14,63779.0,63763.0,0.0036]
[1727274388374,0.14,63770.0,63763.0,0.0036]
[1727274388574,0.14,63770.0,63750.0,0.082634]
[1727274388575,0.14,63764.0,63752.0,0.3608]
[1727274388775,0.14,63764.0,63748.0,0.0037]
[1727274388776,0.14,63753.0,63746.0,0.3608]
[1727274388976,0.14,63749.0,63743.0,0.0037]
[1727274389177,0.3608,63757.0,63744.0,0.14]
[1727274389178,0.3608,63747.0,63744.0,0.14]
[1727274389389,0.3608,63757.0,63747.0,0.078438]
[1727274389574,0.14,63759.0,63744.0,0.50168]
[1727274389778,0.14,63759.0,63744.0,0.5008]
[1727274389974,0.001,63749.0,63744.0,0.5008]
[1727274390288,0.002,63749.0,63744.0,0.5008]
[1727274390477,0.002,63749.0,63748.0,0.078437]
[1727274390777,0.001,63749.0,63748.0,0.078437]
[1727274391180,0.001,63749.0,63744.0,0.3608]
[1727274391375,0.22,63745.0,63744.0,0.3608]
[1727274391772,0.22,63745.0,63733.0,0.078456]
[1727274391972,0.22,63745.0,63735.0,0.3608]
[1727274392179,0.22,63748.0,63738.0,0.078449]
[1727274392381,0.3608,63745.0,63735.0,0.3608]
[1727274392579,0.3618,63745.0,63735.0,0.3608]
[1727274393081,0.3628,63745.0,63735.0,0.3608]
[1727274393381,0.3618,63745.0,63740.0,0.078446]
[1727274393874,0.3618,63745.0,63735.0,0.3608]
[1727274394180,0.3618,63745.0,63744.0,0.078442]
[1727274394181,0.001,63745.0,63744.0,0.078442]
[1727274395173,0.002,63745.0,63744.0,0.078442]
[1727274395574,0.002,63745.0,63744.0,0.298442]
[1727274395775,0.22,63763.0,63754.0,0.07843]
[1727274395976,0.3608,63768.0,63759.0,0.078423]
[1727274396175,0.3608,63768.0,63760.0,0.5808]
[1727274396378,0.3608,63768.0,63766.0,0.078415]
[1727274396775,0.22,63767.0,63760.0,0.078422]
[1727274396991,0.22,63761.0,63754.0,0.078429]
[1727274397987,0.3608,63762.0,63756.0,0.078427]
[1727274398172,0.001,63761.0,63757.0,0.078426]
[1727274398585,0.001,63761.0,63754.0,0.002]
[1727274398783,0.001,63761.0,63759.0,0.078423]
[1727274398985,0.001,63761.0,63749.0,0.58168]
[1727274398986,0.3608,63762.0,63760.0,0.078422]
[1727274399183,0.3618,63762.0,63760.0,0.078422]
[1727274399378,0.001,63762.0,63761.0,0.3608]
[1727274399774,0.003,63768.0,63761.0,0.3608]
[1727274400184,0.0315,63769.0,63767.0,0.078413]
[1727274400574,0.0315,63769.0,63768.0,0.078413]
[1727274400778,0.3608,63771.0,63770.0,0.07841]
[1727274402892,0.003,63771.0,63767.0,0.3608]
[1727274403089,0.003,63771.0,63770.0,0.07841]
[1727274403090,0.011,63771.0,63770.0,0.07841]
[1727274403484,0.3718,63771.0,63770.0,0.07841]
[1727274403684,0.078415,63767.0,63764.0,0.078417]
[1727274403891,0.3718,63771.0,63753.0,0.3608]
[1727274403892,0.298422,63761.0,63753.0,0.3608]
[1727274404088,0.298422,63761.0,63753.0,0.43923]
[1727274404089,0.078429,63755.0,63753.0,0.43923]
[1727274404288,0.078429,63755.0,63753.0,0.3608]
[1727274404493,0.078423,63760.0,63753.0,0.3608]
[1727274404792,0.078419,63763.0,63753.0,0.3608]
[1727274404988,0.078419,63763.0,63760.0,0.078421]
[1727274405288,0.3608,63765.0,63753.0,0.3608]
[1727274405482,0.086409,63771.0,63763.0,0.3608]
[1727274405676,0.008,63771.0,63770.0,0.07841]
[1727274406084,0.440046,63774.0,63763.0,0.3608]
[1727274406284,0.439206,63774.0,63763.0,0.3608]
[1727274406611,0.078407,63773.0,63769.0,0.078411]
[1727274407191,0.078407,63773.0,63763.0,0.3608]
[1727274407391,0.008,63771.0,63763.0,0.3608]
[1727274407684,0.008,63771.0,63770.0,0.07841]
[1727274408884,0.011,63771.0,63770.0,0.07841]
[1727274409084,0.003,63771.0,63770.0,0.07841]
[1727274409782,0.003,63771.0,63770.0,0.43921]
[1727274409998,0.011,63771.0,63770.0,0.51762]
[1727274410291,0.011,63771.0,63770.0,1.58806]
[1727274410501,0.3608,63786.0,63771.0,0.078408]
[1727274410802,0.439191,63786.0,63778.0,0.3608]
[1727274411100,0.078393,63784.0,63778.0,0.3608]
[1727274411298,0.078396,63783.0,63782.0,0.078395]
[1727274411497,0.3608,63786.0,63778.0,0.3608]
[1727274411795,0.078385,63791.0,63790.0,0.078386]
[1727274412790,0.078381,63794.0,63792.0,0.078383]
[1727274413188,0.01,63791.0,63790.0,0.079386]
[1727274413798,0.308384,63791.0,63790.0,0.001]
[1727274414304,0.308384,63791.0,63784.0,0.078393]
[1727274414305,0.078392,63785.0,63784.0,0.078393]
[1727274414497,0.078395,63782.0,63781.0,0.3608]
[1727274414690,0.078396,63782.0,63781.0,0.078396]
[1727274414889,0.078396,63782.0,63781.0,0.439196]
[1727274415190,0.439196,63782.0,63781.0,0.027896]
[1727274415392,0.078415,63766.0,63763.0,0.0037]
[1727274415592,0.078437,63749.0,63744.0,0.00088]
[1727274415791,0.22,63745.0,63740.0,0.078447]
[1727274416002,1.8608,63750.0,63737.0,0.22]
[1727274416199,1.5,63750.0,63749.0,0.3608]
[1727274416390,0.078423,63760.0,63749.0,0.439235]
[1727274416699,0.067423,63760.0,63749.0,0.439235]
[1727274416900,1.578425,63759.0,63749.0,0.439235]
[1727274417200,0.001,63750.0,63749.0,0.439235]
[1727274417398,0.3618,63750.0,63742.0,0.3748]
[1727274417605,0.078438,63748.0,63742.0,0.3748]
[1727274418502,0.078438,63748.0,63742.0,0.3788]
[1727274418703,0.078438,63748.0,63742.0,0.3648]
[1727274419291,0.079438,63748.0,63742.0,0.3648]
[1727274420006,0.080438,63748.0,63742.0,0.3648]
[1727274420308,0.078443,63744.0,63742.0,0.3648]
[1727274420512,0.078443,63744.0,63742.0,0.004]
[1727274420513,0.3608,63743.0,63742.0,0.004]
[1727274421393,0.37032448,63743.0,63742.0,0.004]
[1727274421598,0.439243,63743.0,63742.0,0.004]
[1727274422394,0.440243,63743.0,63742.0,0.004]
[1727274422925,0.439243,63743.0,63742.0,0.004]
[1727274423095,0.440243,63743.0,63742.0,0.004]
[1727274423904,0.079443,63743.0,63742.0,0.004]
[1727274424295,0.5808,63750.0,63742.0,0.004]
[1727274424296,0.07844,63746.0,63742.0,0.004]
[1727274425005,0.001,63743.0,63742.0,0.004]
[1727274425504,0.079443,63743.0,63742.0,0.004]
[1727274425907,0.078443,63743.0,63742.0,0.004]
[1727274426411,0.079443,63743.0,63742.0,0.004]
[1727274427504,0.001,63743.0,63740.0,0.3608]
[1727274427710,0.001,63743.0,63742.0,0.005]
[1727274427711,0.002,63743.0,63742.0,0.005]
[1727274428011,0.300443,63743.0,63742.0,0.005]
[1727274428195,0.378886,63743.0,63742.0,0.005]
[1727274428598,0.378886,63743.0,63734.0,0.3608]
[1727274428599,0.072453,63735.0,63734.0,0.3608]
[1727274428812,0.298453,63735.0,63734.0,0.3608]
[1727274429206,0.298453,63735.0,63727.0,0.36168]
[1727274429207,0.078462,63728.0,63727.0,0.36168]
[1727274429420,0.078462,63728.0,63727.0,0.3608]
[1727274430009,0.078464,63726.0,63725.0,0.078465]
[1727274430216,0.298464,63726.0,63725.0,0.078465]
[1727274430415,0.078466,63725.0,63724.0,0.00235388]
[1727274430806,0.078466,63725.0,63724.0,0.08082088]
[1727274431009,0.078466,63725.0,63724.0,0.00235388]
[1727274431307,0.078469,63722.0,63721.0,0.3608]
[1727274431710,0.078469,63722.0,63721.0,0.43927]
[1727274432111,0.001,63725.0,63724.0,0.078467]
[1727274432908,0.002,63725.0,63724.0,0.078467]
[1727274434312,0.001,63725.0,63724.0,0.078467]
[1727274434720,0.078462,63728.0,63726.0,0.078463]
[1727274435118,0.078462,63728.0,63727.0,0.078463]
[1727274435424,0.3608,63730.0,63729.0,0.078461]
[1727274435808,0.078453,63736.0,63728.0,0.3608]
[1727274436114,0.22,63739.0,63734.0,0.078454]
[1727274436115,0.08080764,63735.0,63734.0,0.078454]
[1727274437722,0.078467,63726.0,63725.0,0.078464]
[1727274437910,0.5808,63729.0,63721.0,0.3608]
[1727274438107,0.078464,63727.0,63725.0,0.078464]
[1727274438409,0.00084,63729.0,63728.0,0.078462]
[1727274438613,0.00084,63729.0,63721.0,0.3608]
[1727274438614,0.07846,63730.0,63721.0,0.3608]
[1727274439016,0.001,63729.0,63721.0,0.3608]
[1727274439621,0.07846,63730.0,63729.0,0.078461]
[1727274441223,0.001,63729.0,63721.0,0.3608]
[1727274441414,0.001,63729.0,63728.0,0.439262]
[1727274441918,0.0036,63740.0,63728.0,1.65156]
[1727274442114,0.0036,63743.0,63739.0,0.3608]
[1727274442318,0.078435,63750.0,63749.0,0.078435]
[1727274442815,0.078438,63748.0,63739.0,0.3608]
[1727274443018,0.078438,63748.0,63747.0,0.078438]
[1727274443019,0.298438,63748.0,63747.0,0.078438]
[1727274443222,0.439233,63752.0,63745.0,0.3608]
[1727274443415,0.3608,63752.0,63751.0,0.078434]
[1727274444419,0.00235377,63754.0,63753.0,0.078431]
[1727274444616,0.2531,63758.0,63757.0,0.078426]
[1727274445720,0.231,63758.0,63757.0,0.078426]
[1727274445923,0.011,63758.0,63757.0,0.078426]
[1727274446120,0.231,63758.0,63757.0,0.078426]
[1727274446425,0.231,63758.0,63751.0,0.3608]
[1727274446426,0.078427,63757.0,63751.0,0.3608]
[1727274446926,0.011,63758.0,63757.0,0.078426]
[1727274447515,0.298413,63768.0,63757.0,0.3608]
[1727274447718,0.22,63768.0,63767.0,0.078414]
[1727274448925,0.221,63768.0,63767.0,0.078414]
[1727274449119,0.299413,63768.0,63767.0,0.078414]
[1727274449523,0.225,63768.0,63767.0,0.078414]
[1727274450230,0.225,63768.0,63765.0,0.078416]
[1727274450429,0.227,63768.0,63765.0,0.078416]
[1727274451127,0.078415,63766.0,63765.0,0.078416]
[1727274451523,0.006,63768.0,63767.0,0.078414]
[1727274451716,0.004,63768.0,63767.0,0.078414]
[1727274451927,0.2236,63778.0,63767.0,0.627268]
[1727274451928,0.0036,63778.0,63767.0,0.627268]
[1727274452130,0.00595349,63782.0,63781.0,0.078397]
[1727274452322,0.00595349,63782.0,63781.0,0.439197]
[1727274452323,0.00235349,63782.0,63781.0,0.439197]
[1727274452628,0.00235349,63782.0,63781.0,0.517594]
[1727274453137,0.00235349,63782.0,63781.0,1.75602607]
[1727274453331,0.00235349,63782.0,63781.0,1.15602607]
[1727274453531,0.00235349,63782.0,63781.0,1.75602607]
[1727274454223,0.00235349,63782.0,63781.0,1.07862907]
[1727274454429,0.00235349,63782.0,63781.0,1.75702607]
[1727274455026,0.06220142,63791.0,63781.0,1.60023207]
[1727274455228,0.06220142,63795.0,63794.0,0.078381]
[1727274456134,0.06220142,63796.0,63794.0,0.078381]
[1727274456439,0.06220142,63799.0,63793.0,0.3608]
[1727274456731,0.078372,63801.0,63800.0,0.078373]
[1727274457133,0.04167847,63803.0,63795.0,0.078379]
[1727274457327,0.22,63798.0,63795.0,0.078379]
[1727274457527,0.22,63798.0,63793.0,0.3608]
[1727274457920,0.28220142,63798.0,63793.0,0.3608]
[1727274458127,0.078381,63794.0,63793.0,0.3608]
[1727274460229,0.078381,63794.0,63793.0,0.439182]
[1727274460623,0.086381,63794.0,63793.0,0.3608]
[1727274460825,0.098381,63794.0,63793.0,0.3608]
[1727274461025,0.02,63794.0,63793.0,0.3608]
[1727274461339,0.098381,63794.0,63793.0,0.078382]
[1727274462033,0.459181,63794.0,63793.0,0.078382]
[1727274462234,0.078385,63791.0,63790.0,0.078385]
[1727274462740,0.38989796,63794.0,63792.0,0.078382]
[1727274462936,0.38989796,63794.0,63787.0,0.3608]
[1727274462937,0.3808,63794.0,63793.0,0.078382]
[1727274463235,0.02,63794.0,63793.0,0.439182]
[1727274463437,0.02,63794.0,63793.0,0.517564]
[1727274463736,0.012,63794.0,63793.0,1.98567]
[1727274463945,0.0365,63805.0,63804.0,0.078368]
[1727274463946,0.0036,63805.0,63804.0,0.078368]
[1727274464249,0.0729543,63814.0,63799.0,0.078374]
[1727274464250,0.0036,63818.0,63806.0,0.078366]
[1727274464454,0.078353,63817.0,63806.0,0.298366]
[1727274464741,0.0036,63818.0,63817.0,0.078352]
[1727274464933,0.0651,63825.0,63806.0,1.46919722]
[1727274464934,0.0651,63825.0,63820.0,0.078348]
[1727274464935,0.08762093,63823.0,63820.0,0.078348]
[1727274465539,0.00927593,63823.0,63815.0,0.078355]
[1727274465737,0.078348,63821.0,63816.0,0.078353]
[1727274465936,0.0651,63825.0,63812.0,0.3608]
[1727274465937,0.22,63820.0,63812.0,0.3608]
[1727274466143,0.22,63820.0,63811.0,0.078359]
[1727274466144,0.22,63815.0,63811.0,0.078359]
[1727274466341,0.22,63815.0,63804.0,0.3608]
[1727274466536,0.22,63807.0,63805.0,0.078367]
[1727274466934,0.078359,63812.0,63804.0,0.3608]
[1727274467230,0.078354,63817.0,63813.0,0.078357]
[1727274467540,0.22933331,63819.0,63814.0,0.078356]
[1727274468433,0.078356,63814.0,63813.0,0.001]
[1727274468738,0.28220142,63814.0,63810.0,0.079241]
[1727274468949,0.06220142,63813.0,63810.0,0.078361]
[1727274469539,0.06220142,63812.0,63810.0,0.078361]
[1727274469833,0.078363,63809.0,63808.0,0.078364]
[1727274471128,0.14056442,63809.0,63808.0,0.078364]
[1727274471331,0.14256442,63809.0,63808.0,0.078364]
[1727274471927,0.14056442,63809.0,63808.0,0.078364]
[1727274472132,0.080363,63809.0,63808.0,0.078364]
[1727274472641,0.002,63809.0,63808.0,0.078364]
[1727274472833,0.06409865,63809.0,63808.0,0.078364]
[1727274473138,0.06409865,63809.0,63804.0,0.439168]
[1727274473139,0.062126,63809.0,63804.0,0.439168]
[1727274473339,0.065126,63809.0,63804.0,0.439168]
[1727274473741,0.066126,63809.0,63804.0,0.439168]
[1727274474140,0.004,63809.0,63808.0,0.078364]
[1727274474340,0.003,63809.0,63808.0,0.078364]
[1727274475051,0.07803375,63812.0,63811.0,0.07836]
[1727274475233,0.078355,63815.0,63814.0,0.078356]
[1727274475431,0.10376158,63815.0,63814.0,0.078356]
[1727274475944,0.078355,63815.0,63814.0,0.078356]
[1727274476143,0.1037612,63815.0,63814.0,0.078356]
[1727274476540,0.078359,63812.0,63811.0,0.43916]
[1727274476857,0.081359,63812.0,63811.0,0.43916]
[1727274477459,0.078359,63812.0,63811.0,0.43916]
[1727274478349,0.081359,63812.0,63811.0,0.43916]
[1727274478542,0.081359,63812.0,63804.0,0.3608]
[1727274478543,0.078365,63807.0,63806.0,0.078365]
[1727274479748,0.078367,63806.0,63805.0,0.078367]
[1727274479945,0.078367,63805.0,63804.0,0.3608]